fUST/lending_fUST_20260513
["ID","MTS","AMOUNT","RATE_DAILY","PERIOD"]
[422157173,1778634640000,-500.0,0.00010958,2]
[422157166,1778634640000,-500.0,0.00010958,2]
[422157186,1778634640000,-1268.06,0.00010958,2]
[422157189,1778634640000,-500.0,0.00010958,2]
[422157190,1778634640000,-500.0,0.00010958,2]
[422157188,1778634640000,-285.19480934,0.00010958,2]
[422157187,1778634640000,-1357.43,0.00010958,2]
[422157183,1778634640000,-500.0,0.00010958,2]
[422157181,1778634640000,-1212.04,0.00010958,2]
[422157191,1778634640000,-500.0,0.00010958,2]
[422157177,1778634640000,-500.0,0.00010958,2]
[422157175,1778634640000,-500.0,0.00010958,2]
[422157185,1778634640000,-500.0,0.00010958,2]
[422157222,1778634641000,-658.14,0.00010958,2]
[422157220,1778634641000,-160.0,0.00010675,2]
[422157223,1778634641000,-181.12056192,0.00010958,2]
[422157221,1778634641000,-400.84987444,0.00010958,2]
[422157224,1778634641000,-2369.05,0.00010958,2]
[422157225,1778634641000,-500.0,0.00010958,2]
[422157229,1778634641000,-151.0,0.00010958,2]
[422157227,1778634641000,-2974.17,0.00010958,2]
[422157228,1778634641000,-151.0,0.00010958,2]
[422157230,1778634641000,-2440.71,0.00010958,2]
[422157232,1778634641000,-1398.05897153,0.00010958,2]
[422157231,1778634641000,-151.0,0.00010958,2]
[422157233,1778634641000,152.0,0.0001381,30]
[422157226,1778634641000,-936.01,0.00010958,2]
[422157234,1778634642000,152.0,0.00013824,30]
[422157237,1778634646000,-2426.99102847,0.00010958,2]
[422157239,1778634646000,-151.0,0.00010958,2]
[422157238,1778634646000,-151.0,0.00010958,2]
[422157240,1778634646000,-151.0,0.00010958,2]
[422157236,1778634646000,-2977.41420254,0.00010739,2]
[422157243,1778634646000,-156.13870025,0.00010958,2]
[422157244,1778634646000,-828.54,0.00010958,2]
[422157241,1778634646000,-4858.47455133,0.00010958,2]
[422157242,1778634646000,-1305.21544867,0.00010958,2]
[422157245,1778634646000,-4007.10585108,0.00010958,2]
[422157255,1778634662000,152.0,0.0001381,30]
[422157257,1778634747000,152.0,0.00013824,30]
[422157261,1778634896000,8300.8,0.00014,30]
[422157262,1778634905000,152.0,0.00013825,30]
[422157267,1778635067000,162.00300084,5.001e-05,2]
[422157266,1778635067000,840.391687,5.001e-05,2]
[422157387,1778635835000,-3983.72723009,9.215e-05,2]
[422157389,1778635835000,-500.0,9.69e-05,2]
[422157391,1778635835000,-300.0,9.991e-05,2]
[422157386,1778635835000,-398.23360693,9.169e-05,2]
[422157382,1778635835000,-1899.87042264,9.123e-05,2]
[422157393,1778635835000,-500.0,9.999e-05,2]
[422157395,1778635835000,-204.80619856,0.00010197,2]
[422157384,1778635835000,-3100.12957736,9.123e-05,2]
[422157475,1778635838000,-226.49077825,0.00010197,2]
[422157478,1778635838000,-1212.53583821,0.00010197,2]
[422157477,1778635838000,-302.47905482,0.00010197,2]
[422157476,1778635838000,-910.05678339,0.00010197,2]
[422157479,1778635838000,-1212.53583821,0.00010197,2]
[422157482,1778635838000,-1212.53583821,0.00010197,2]
[422157481,1778635838000,-1212.53583821,0.00010197,2]
[422157480,1778635838000,-1212.53583821,0.00010197,2]
[422157486,1778635838000,-1212.53583821,0.00010197,2]
[422157484,1778635838000,-1179.54283763,0.00010197,2]
[422157491,1778635838000,-500.0,0.00010197,2]
[422157489,1778635838000,-1212.53583821,0.00010197,2]
[422157487,1778635838000,-1212.53583821,0.00010197,2]
[422157483,1778635838000,-32.99300058,0.00010197,2]
[422157488,1778635838000,-500.0,0.00010197,2]
[422157490,1778635838000,-500.0,0.00010197,2]
[422157493,1778635838000,-1212.53583821,0.00010197,2]
[422157492,1778635838000,-1212.53583821,0.00010197,2]
[422157485,1778635838000,-1212.53583821,0.00010197,2]
[422157516,1778635839000,-1241.14436198,0.000105,2]
[422157510,1778635839000,-161.62975969,0.0001035,2]
[422157513,1778635839000,-1241.14436198,0.000104,2]
[422157507,1778635839000,-1550.61650998,0.00010197,2]
[422157505,1778635839000,-1550.61650998,0.00010197,2]
[422157500,1778635839000,-1550.61650998,0.00010197,2]
[422157498,1778635839000,-1550.61650998,0.00010197,2]
[422157497,1778635839000,-1212.53583821,0.00010197,2]
[422157496,1778635839000,-1212.53583821,0.00010197,2]
[422157511,1778635839000,-160.0,0.0001035,2]
[422157499,1778635839000,-1550.61650998,0.00010197,2]
[422157495,1778635839000,-1212.53583821,0.00010197,2]
[422157504,1778635839000,-1550.61650998,0.00010197,2]
[422157494,1778635839000,-496.90534373,0.00010197,2]
[422157503,1778635839000,-1550.61650998,0.00010197,2]
[422157502,1778635839000,-1550.61650998,0.00010197,2]
[422157508,1778635839000,-484477.79833364,0.00010198,2]
[422157501,1778635839000,-1550.61650998,0.00010197,2]
[422157514,1778635839000,-537.6845,0.00010409,2]
[422157530,1778635839000,-6326.23149862,0.00010858,2]
[422157527,1778635839000,-443.0,0.00010742,2]
[422157526,1778635839000,-185.0,0.00010742,2]
[422157528,1778635839000,-320.07,0.00010852,2]
[422157525,1778635839000,-186.0,0.00010742,2]
[422157523,1778635839000,-2385.62691894,0.00010739,2]
[422157522,1778635839000,-1241.14436198,0.000107,2]
[422157520,1778635839000,-621.78829552,0.00010629,2]
[422157524,1778635839000,-2201.0,0.00010742,2]
[422157518,1778635839000,-599.60298507,0.00010574,2]
[422157521,1778635839000,-795.08535207,0.00010684,2]
[422157517,1778635839000,-578.20924308,0.00010519,2]
[422157512,1778635839000,-160.0,0.0001035,2]
[422157515,1778635839000,-557.5788265,0.00010464,2]
[422157509,1778635839000,-1241.14436198,0.000103,2]
[422157529,1778635839000,-341.40542372,0.00010858,2]
[422157519,1778635839000,-1241.14436198,0.000106,2]
[422157506,1778635839000,-1550.61650998,0.00010197,2]
[422157541,1778635840000,-897.44031782,0.00010858,2]
[422157583,1778635850000,-65569.26378907,0.00010858,2]
[422157582,1778635850000,-1202.05235176,0.00010858,2]
[422157570,1778635850000,-2804.10906411,0.00010858,2]
[422157571,1778635850000,-403.29280148,0.00010858,2]
[422157568,1778635850000,-456.0,0.00010739,2]
[422157569,1778635850000,-1136.23056683,0.00010739,2]
[422157596,1778635864000,152.0,0.00013311,30]
[422157799,1778636193000,352.44053981,0.00013689,30]
[422157804,1778636207000,152.0,0.00013859,30]
[422157841,1778636552000,152.0,0.0001387,30]
[422157846,1778636833000,152.0,0.00013842,30]
[422157979,1778637032000,-405.89418017,9.847e-05,2]
[422157978,1778637032000,-284.39501214,9.847e-05,2]
[422157977,1778637032000,-3968.2638747,9.765e-05,2]
[422157976,1778637032000,-2268.02593999,9.747e-05,2]
[422157975,1778637032000,-953.05936505,9.647e-05,2]
[422157974,1778637032000,-398.59301451,9.561e-05,2]
[422157973,1778637032000,-5000.0,9.285e-05,2]
[422158025,1778637043000,-741.48,9.749e-05,2]
[422158032,1778637046000,-1318.56121856,9.749e-05,2]
[422158033,1778637047000,-2088.19469043,9.749e-05,2]
[422158034,1778637047000,-2439.77999958,9.847e-05,2]
[422158035,1778637047000,-158.1917231,9.847e-05,2]
[422158037,1778637047000,-4897.95908987,0.00010147,2]
[422158039,1778637047000,-16781.675361,0.00010295,2]
[422158038,1778637047000,-3583.5600529,0.00010295,2]
[422158036,1778637047000,-3582.99251493,9.947e-05,2]
[422158042,1778637047000,-456.4437056,0.00010367,2]
[422158041,1778637047000,-5854.0121575,0.00010347,2]
[422158040,1778637047000,-3494.8717023,0.00010295,2]
[422158048,1778637047000,-161.62975969,0.00010458,2]
[422158046,1778637047000,-160.0,0.00010458,2]
[422158045,1778637047000,-159.4,0.00010448,2]
[422158047,1778637047000,-160.0,0.00010458,2]
[422158051,1778637047000,-161.39,0.00010501,2]
[422158043,1778637047000,-537.6845,0.00010409,2]
[422158050,1778637047000,-162.83,0.00010479,2]
[422158049,1778637047000,-557.5788265,0.00010464,2]
[422158053,1778637047000,-56447.05449773,0.00010639,2]
[422158052,1778637047000,-358.91360451,0.00010519,2]
[422158044,1778637047000,-158.84,0.00010422,2]
[422158056,1778637117000,151.0,0.00014,30]
[422158057,1778637126000,152.0,0.0001382,30]
[422158059,1778637157000,151.0,0.00014,30]
[422158060,1778637192000,3000.0,0.00014,30]
[422158115,1778637974000,1182.12360711,0.00014,30]
[422158138,1778638036000,532.0056232,0.00014,30]
[422158146,1778638133000,505.40534204,0.00014,30]
[422158147,1778638207000,960.17014988,0.00014,30]
[422158173,1778638232000,-252.40709678,9.9e-05,2]
[422158171,1778638232000,-161.7582298,9.374e-05,2]
[422158169,1778638232000,-289.1091595,9.234e-05,2]
[422158170,1778638232000,-101.51199472,9.234e-05,2]
[422158168,1778638232000,-1087.95467387,8.914e-05,2]
[422158166,1778638232000,-881.03980434,8.825e-05,2]
[422158167,1778638232000,-3622.93616663,8.825e-05,2]
[422158165,1778638232000,-496.02402903,8.825e-05,2]
[422158246,1778638238000,-151.0,0.00010356,2]
[422158240,1778638238000,-60.02316593,9.9e-05,2]
[422158242,1778638238000,-272.0,0.0001,2]
[422158244,1778638238000,-503.56012524,0.0001,2]
[422158250,1778638238000,-500.0,0.00010438,2]
[422158256,1778638238000,-500.0,0.00010438,2]
[422158258,1778638238000,-500.0,0.00010438,2]
[422158254,1778638238000,-500.0,0.00010438,2]
[422158248,1778638238000,-456.4437056,0.00010356,2]
[422158252,1778638238000,-500.0,0.00010438,2]
[422158260,1778638238000,-500.0,0.00010438,2]
[422158272,1778638239000,-597.90272528,0.00010438,2]
[422158262,1778638239000,-501.81945367,0.00010438,2]
[422158264,1778638239000,-500.0,0.00010438,2]
[422158268,1778638239000,-500.0,0.00010438,2]
[422158270,1778638239000,-500.0,0.00010438,2]
[422158266,1778638239000,-500.0,0.00010438,2]
[422158277,1778638239000,-500.0,0.00010438,2]
[422158279,1778638239000,-362.57079246,0.00010438,2]
[422158281,1778638239000,-52702.06041482,0.00010439,2]
[422158283,1778638239000,-1856.86616958,0.00010439,2]
[422158286,1778638239000,-27469.92636343,0.00010439,2]
[422158288,1778638239000,-811.51114452,0.00010439,2]
[422158275,1778638239000,-500.0,0.00010438,2]
[422158412,1778638244000,-3738.203217,0.00010506,2]
[422158408,1778638244000,-8399.05480482,0.00010439,2]
[422158406,1778638244000,-1650.03931146,0.00010439,2]
[422158411,1778638244000,-161.63868993,0.00010464,2]
[422158409,1778638244000,-160.0,0.00010464,2]
[422158391,1778638244000,-3215.89712044,0.00010439,2]
[422158396,1778638244000,-13998.86834645,0.00010439,2]
[422158413,1778638244000,-1061.48704456,0.00010739,2]
[422158393,1778638244000,-921.7755765,0.00010439,2]
[422158357,1778638244000,-760.86230765,0.00010439,2]
[422158402,1778638244000,-772.35891182,0.00010439,2]
[422158415,1778638244000,-152.0,0.00010911,2]
[422158360,1778638244000,-2292.89147835,0.00010439,2]
[422158416,1778638244000,-152.0,0.00010936,2]
[422158414,1778638244000,-152.0,0.00010899,2]
[422158427,1778638244000,-944.04374878,0.00010957,2]
[422158425,1778638244000,-1429.0422126,0.00010957,2]
[422158426,1778638244000,-1429.0422126,0.00010957,2]
[422158423,1778638244000,-1429.0422126,0.00010957,2]
[422158424,1778638244000,-1429.0422126,0.00010957,2]
[422158410,1778638244000,-160.0,0.00010464,2]
[422158419,1778638244000,-1429.0422126,0.00010957,2]
[422158420,1778638244000,-473.05890686,0.00010957,2]
[422158421,1778638244000,-1429.0422126,0.00010957,2]
[422158418,1778638244000,-156.366,0.00010957,2]
[422158417,1778638244000,-155.0,0.00010957,2]
[422158422,1778638244000,-1429.0422126,0.00010957,2]
[422158449,1778638247000,-1519.9812625,0.00010957,2]
[422158451,1778638247000,-1937.97610969,0.00010957,2]
[422158453,1778638247000,-544.87,0.00010958,2]
[422158456,1778638247000,-500.0,0.00010958,2]
[422158459,1778638247000,-500.0,0.00010958,2]
[422158433,1778638247000,-707.6580297,0.00010739,2]
[422158455,1778638247000,-500.0,0.00010958,2]
[422158460,1778638247000,-879.42,0.00010958,2]
[422158452,1778638247000,-3905.517,0.00010958,2]
[422158458,1778638247000,-500.0,0.00010958,2]
[422158462,1778638247000,-962.04,0.00010958,2]
[422158457,1778638247000,-500.0,0.00010958,2]
[422158450,1778638247000,-1937.97610969,0.00010957,2]
[422158445,1778638247000,-1519.9812625,0.00010957,2]
[422158446,1778638247000,-33.36103423,0.00010957,2]
[422158444,1778638247000,-1519.9812625,0.00010957,2]
[422158443,1778638247000,-1519.9812625,0.00010957,2]
[422158447,1778638247000,-1486.62022827,0.00010957,2]
[422158440,1778638247000,-1429.0422126,0.00010957,2]
[422158441,1778638247000,-1519.9812625,0.00010957,2]
[422158439,1778638247000,-1429.0422126,0.00010957,2]
[422158438,1778638247000,-1429.0422126,0.00010957,2]
[422158437,1778638247000,-1429.0422126,0.00010957,2]
[422158435,1778638247000,-484.99846382,0.00010957,2]
[422158436,1778638247000,-1429.0422126,0.00010957,2]
[422158434,1778638247000,-2088.19469043,0.00010847,2]
[422158461,1778638247000,-500.0,0.00010958,2]
[422158448,1778638247000,-1519.9812625,0.00010957,2]
[422158442,1778638247000,-1519.9812625,0.00010957,2]
[422158454,1778638247000,-500.0,0.00010958,2]
[422158465,1778638247000,-1084.61,0.00010958,2]
[422158463,1778638247000,-500.0,0.00010958,2]
[422158493,1778638247000,-447.36543946,0.00010958,2]
[422158492,1778638247000,-972.89,0.00010958,2]
[422158491,1778638247000,-500.0,0.00010958,2]
[422158487,1778638247000,-661.45,0.00010958,2]
[422158488,1778638247000,-500.0,0.00010958,2]
[422158489,1778638247000,-500.0,0.00010958,2]
[422158490,1778638247000,-1401.67,0.00010958,2]
[422158485,1778638247000,-500.0,0.00010958,2]
[422158481,1778638247000,-57.79419416,0.00010958,2]
[422158479,1778638247000,-609.34,0.00010958,2]
[422158486,1778638247000,-500.0,0.00010958,2]
[422158484,1778638247000,-2959.42,0.00010958,2]
[422158482,1778638247000,-1124.06580584,0.00010958,2]
[422158464,1778638247000,-500.0,0.00010958,2]
[422158480,1778638247000,-500.0,0.00010958,2]
[422158483,1778638247000,-628.69,0.00010958,2]
[422158468,1778638247000,-500.0,0.00010958,2]
[422158469,1778638247000,-500.0,0.00010958,2]
[422158466,1778638247000,-651.27,0.00010958,2]
[422158470,1778638247000,-669.22,0.00010958,2]
[422158474,1778638247000,-686.47,0.00010958,2]
[422158473,1778638247000,-500.0,0.00010958,2]
[422158471,1778638247000,-609.08734175,0.00010958,2]
[422158475,1778638247000,-500.0,0.00010958,2]
[422158478,1778638247000,-803.28,0.00010958,2]
[422158476,1778638247000,-500.0,0.00010958,2]
[422158477,1778638247000,-1457.36,0.00010958,2]
[422158472,1778638247000,-500.0,0.00010958,2]
[422158467,1778638247000,-500.0,0.00010958,2]
[422158497,1778638376000,152.0,0.00013946,30]
[422158500,1778638377000,152.0,0.0001396,30]
[422158498,1778638377000,152.0,0.00013946,30]
[422158502,1778638397000,152.0,0.00013946,30]
[422158503,1778638398000,152.0,0.0001396,30]
[422158505,1778638435000,152.0,0.00013946,30]
[422158732,1778638619000,152.0,0.00013983,30]
[422158734,1778638620000,152.0,0.00013983,30]
[422158784,1778639015000,152.0,0.00013983,30]
[422158799,1778639378000,152.0,0.00013962,30]
[422158798,1778639378000,152.0,0.00013962,30]
[422158800,1778639398000,152.0,0.00013983,30]
[422158843,1778639432000,-5000.0,8.533e-05,2]
[422158849,1778639432000,-300.0,8.793e-05,2]
[422158846,1778639432000,-52.98736885,8.619e-05,2]
[422158852,1778639432000,-182.90354235,9.342e-05,2]
[422158850,1778639432000,-406.97809293,8.839e-05,2]
[422158851,1778639432000,-168.0455543,9.112e-05,2]
[422158844,1778639432000,-1231.65146064,8.619e-05,2]
[422158848,1778639432000,-5000.0,8.706e-05,2]
[422158908,1778639437000,-180.08510235,0.00010233,2]
[422158906,1778639437000,-324.0,9.672e-05,2]
[422158904,1778639437000,-1147.02609905,9.342e-05,2]
[422158918,1778639437000,-151.0,0.00010233,2]
[422158917,1778639437000,-151.0,0.00010233,2]
[422158915,1778639437000,-48.10908471,0.00010233,2]
[422158920,1778639437000,-74.06593499,0.00010233,2]
[422158910,1778639437000,-102.89091529,0.00010233,2]
[422159005,1778639438000,-408.87857104,0.00010956,2]
[422158991,1778639438000,-152.0,0.00010865,2]
[422159001,1778639438000,-173.9994164,0.0001095,2]
[422159003,1778639438000,-500.0,0.00010955,2]
[422158999,1778639438000,-152.0,0.00010906,2]
[422158993,1778639438000,-152.0,0.00010886,2]
[422158989,1778639438000,-152.0,0.00010865,2]
[422158997,1778639438000,-1320.94074633,0.000109,2]
[422158986,1778639438000,-178.79799228,0.00010857,2]
[422158995,1778639438000,-1809.3772093,0.000109,2]
[422158984,1778639438000,-152.0,0.00010853,2]
[422158981,1778639438000,-480.23414966,0.00010839,2]
[422158988,1778639438000,-152.0,0.00010865,2]
[422159007,1778639438000,-500.0,0.00010956,2]
[422159021,1778639438000,-167.94098957,0.00010956,2]
[422159020,1778639438000,-500.0,0.00010956,2]
[422159023,1778639438000,-560.5226293,0.00010957,2]
[422159025,1778639438000,-1685.62210359,0.00010957,2]
[422159027,1778639438000,-1685.62210359,0.00010957,2]
[422159029,1778639438000,-1685.62210359,0.00010957,2]
[422159030,1778639438000,-1685.62210359,0.00010957,2]
[422159032,1778639438000,-1685.62210359,0.00010957,2]
[422159010,1778639438000,-500.0,0.00010956,2]
[422159014,1778639438000,-534.12441971,0.00010956,2]
[422159012,1778639438000,-500.0,0.00010956,2]
[422159018,1778639438000,-500.0,0.00010956,2]
[422159016,1778639438000,-500.0,0.00010956,2]
[422158982,1778639438000,-152.0,0.00010853,2]
[422159009,1778639438000,-500.0,0.00010956,2]
[422158968,1778639438000,-1809.3772093,0.000107,2]
[422158942,1778639438000,-160.0,0.00010523,2]
[422158972,1778639438000,-2166.72160835,0.00010715,21]
[422158923,1778639438000,-76.93406501,0.00010233,2]
[422158924,1778639438000,-151.0,0.00010233,2]
[422158930,1778639438000,-151.0,0.00010233,2]
[422158926,1778639438000,-151.0,0.00010233,2]
[422158928,1778639438000,-151.0,0.00010233,2]
[422158934,1778639438000,-301.87607266,0.00010233,2]
[422158932,1778639438000,-151.0,0.00010233,2]
[422158936,1778639438000,-13417.55428729,0.00010239,2]
[422158938,1778639438000,-1809.3772093,0.000105,2]
[422159038,1778639438000,-1685.62210359,0.00010957,2]
[422158949,1778639438000,-1320.94074633,0.000106,2]
[422158940,1778639438000,-1320.94074633,0.000105,2]
[422158947,1778639438000,-1809.3772093,0.000106,2]
[422158970,1778639438000,-1320.94074633,0.000107,2]
[422158946,1778639438000,-161.63868993,0.00010523,2]
[422158951,1778639438000,-38330.09,0.0001065,7]
[422158944,1778639438000,-160.0,0.00010523,2]
[422158955,1778639438000,-2218.946,0.00010677,2]
[422158961,1778639438000,-185.0,0.00010677,2]
[422158960,1778639438000,-1414.699,0.00010677,2]
[422158964,1778639438000,-500.0,0.00010681,2]
[422158963,1778639438000,-444.481,0.00010677,2]
[422158978,1778639438000,-1809.3772093,0.000108,2]
[422158965,1778639438000,-500.0,0.00010681,2]
[422158974,1778639438000,-781.52469795,0.00010739,2]
[422158976,1778639438000,-4333.4432167,0.0001076,21]
[422158980,1778639438000,-1320.94074633,0.000108,2]
[422158967,1778639438000,-638.47640025,0.00010681,2]
[422158954,1778639438000,-2177.79895986,0.00010669,21]
[422159036,1778639438000,-1685.62210359,0.00010957,2]
[422158957,1778639438000,-648.142,0.00010677,2]
[422159040,1778639438000,-1685.62210359,0.00010957,2]
[422159092,1778639438000,-1557.39,0.00010958,2]
[422159106,1778639438000,-500.0,0.00010958,2]
[422159101,1778639438000,-500.0,0.00010958,2]
[422159103,1778639438000,-500.0,0.00010958,2]
[422159110,1778639438000,-500.0,0.00010958,2]
[422159123,1778639438000,-500.0,0.00010958,2]
[422159114,1778639438000,-500.0,0.00010958,2]
[422159125,1778639438000,-807.42,0.00010958,2]
[422159112,1778639438000,-489.40816884,0.00010958,2]
[422159119,1778639438000,-500.0,0.00010958,2]
[422159127,1778639438000,-1364.8578269,0.00010958,2]
[422159130,1778639438000,-1413.0021731,0.00010958,2]
[422159162,1778639438000,-500.0,0.00010958,2]
[422159108,1778639438000,-500.0,0.00010958,2]
[422159118,1778639438000,-500.0,0.00010958,2]
[422159116,1778639438000,-500.0,0.00010958,2]
[422159132,1778639438000,-1407.32,0.00010958,2]
[422159134,1778639438000,-500.0,0.00010958,2]
[422159148,1778639438000,-690.47,0.00010958,2]
[422159150,1778639438000,-500.0,0.00010958,2]
[422159143,1778639438000,-637.81,0.00010958,2]
[422159144,1778639438000,-500.0,0.00010958,2]
[422159146,1778639438000,-797.89,0.00010958,2]
[422159154,1778639438000,-500.0,0.00010958,2]
[422159156,1778639438000,-1452.54,0.00010958,2]
[422159158,1778639438000,-529.91,0.00010958,2]
[422159160,1778639438000,-500.0,0.00010958,2]
[422159034,1778639438000,-1685.62210359,0.00010957,2]
[422159121,1778639438000,-500.0,0.00010958,2]
[422159105,1778639438000,-208.62346375,0.00010958,2]
[422159152,1778639438000,-500.0,0.00010958,2]
[422159099,1778639438000,-500.0,0.00010958,2]
[422159094,1778639438000,-500.0,0.00010958,2]
[422159041,1778639438000,-1685.62210359,0.00010957,2]
[422159045,1778639438000,-1706.69237988,0.00010957,2]
[422159043,1778639438000,-1685.62210359,0.00010957,2]
[422159049,1778639438000,-1706.69237988,0.00010957,2]
[422159047,1778639438000,-1706.69237988,0.00010957,2]
[422159054,1778639438000,-1706.69237988,0.00010957,2]
[422159053,1778639438000,-1706.69237988,0.00010957,2]
[422159056,1778639438000,-1706.69237988,0.00010957,2]
[422159059,1778639438000,-1706.69237988,0.00010957,2]
[422159060,1778639438000,-1706.69237988,0.00010957,2]
[422159072,1778639438000,-2023.32872932,0.00010957,2]
[422159074,1778639438000,-4092.622,0.00010958,2]
[422159077,1778639438000,-500.0,0.00010958,2]
[422159050,1778639438000,-1706.69237988,0.00010957,2]
[422159076,1778639438000,-500.0,0.00010958,2]
[422159090,1778639438000,-500.0,0.00010958,2]
[422159062,1778639438000,-1706.69237988,0.00010957,2]
[422159089,1778639438000,-968.17,0.00010958,2]
[422159097,1778639438000,-500.0,0.00010958,2]
[422159096,1778639438000,-500.0,0.00010958,2]
[422159085,1778639438000,-500.0,0.00010958,2]
[422159083,1778639438000,-500.0,0.00010958,2]
[422159087,1778639438000,-500.0,0.00010958,2]
[422159070,1778639438000,-2023.32872932,0.00010957,2]
[422159068,1778639438000,-2023.32872932,0.00010957,2]
[422159079,1778639438000,-611.59,0.00010958,2]
[422159064,1778639438000,-1706.69237988,0.00010957,2]
[422159066,1778639438000,-2023.32872932,0.00010957,2]
[422159081,1778639438000,-500.0,0.00010958,2]
[422159213,1778639439000,-502.20602639,0.00010958,2]
[422159209,1778639439000,-501.28326629,0.00010958,2]
[422159224,1778639439000,-500.0,0.00010958,2]
[422159207,1778639439000,-1712.3,0.00010958,2]
[422159211,1778639439000,-500.0,0.00010958,2]
[422159226,1778639439000,-2971.31,0.00010958,2]
[422159223,1778639439000,-1655.43,0.00010958,2]
[422159228,1778639439000,-500.0,0.00010958,2]
[422159230,1778639439000,-500.0,0.00010958,2]
[422159232,1778639439000,-500.0,0.00010958,2]
[422159243,1778639439000,-821.73,0.00010958,2]
[422159245,1778639439000,-228.81567189,0.00010958,2]
[422159239,1778639439000,-500.0,0.00010958,2]
[422159237,1778639439000,-469.28140273,0.00010958,2]
[422159234,1778639439000,-30.71859727,0.00010958,2]
[422159248,1778639439000,-271.18432811,0.00010958,2]
[422159250,1778639439000,-869.01,0.00010958,2]
[422159205,1778639439000,-500.0,0.00010958,2]
[422159252,1778639439000,-500.0,0.00010958,2]
[422159241,1778639439000,-904.04,0.00010958,2]
[422159221,1778639439000,-500.0,0.00010958,2]
[422159193,1778639439000,-823.54,0.00010958,2]
[422159217,1778639439000,-1384.58,0.00010958,2]
[422159254,1778639439000,-500.0,0.00010958,2]
[422159165,1778639439000,-1132.61,0.00010958,2]
[422159166,1778639439000,-2953.65,0.00010958,2]
[422159170,1778639439000,-500.0,0.00010958,2]
[422159168,1778639439000,-625.37,0.00010958,2]
[422159172,1778639439000,-500.0,0.00010958,2]
[422159176,1778639439000,-500.0,0.00010958,2]
[422159174,1778639439000,-500.0,0.00010958,2]
[422159191,1778639439000,-1190.47,0.00010958,2]
[422159195,1778639439000,-500.0,0.00010958,2]
[422159180,1778639439000,-661.17,0.00010958,2]
[422159178,1778639439000,-1265.04,0.00010958,2]
[422159197,1778639439000,-500.0,0.00010958,2]
[422159182,1778639439000,-500.0,0.00010958,2]
[422159199,1778639439000,-500.0,0.00010958,2]
[422159186,1778639439000,-500.0,0.00010958,2]
[422159184,1778639439000,-1396.64,0.00010958,2]
[422159188,1778639439000,-500.0,0.00010958,2]
[422159201,1778639439000,-500.0,0.00010958,2]
[422159215,1778639439000,-500.0,0.00010958,2]
[422159203,1778639439000,-2947.11,0.00010958,2]
[422159219,1778639439000,-500.0,0.00010958,2]
[422159256,1778639439000,-500.0,0.00010958,2]
[422159278,1778639439000,-828.69,0.00010958,2]
[422159268,1778639439000,-500.0,0.00010958,2]
[422159306,1778639439000,-636.93481757,0.00010958,2]
[422159304,1778639439000,-755.18,0.00010958,2]
[422159318,1778639439000,-3023.69,0.00010958,2]
[422159322,1778639439000,-500.0,0.00010958,2]
[422159314,1778639439000,-500.0,0.00010958,2]
[422159308,1778639439000,-1402.6,0.00010958,2]
[422159309,1778639439000,-500.0,0.00010958,2]
[422159316,1778639439000,-500.0,0.00010958,2]
[422159324,1778639439000,-500.0,0.00010958,2]
[422159320,1778639439000,-500.0,0.00010958,2]
[422159326,1778639439000,-2694.34,0.00010958,2]
[422159341,1778639439000,-409.61912373,0.00010958,2]
[422159344,1778639439000,-186.63599618,0.00010958,2]
[422159331,1778639439000,-8184.82,0.00010958,2]
[422159348,1778639439000,-1397.79677892,0.00010958,2]
[422159345,1778639439000,-500.0,0.00010958,2]
[422159339,1778639439000,-1148.97488009,0.00010958,2]
[422159333,1778639439000,-1942.93,0.00010958,2]
[422159270,1778639439000,-6925.35,0.00010958,2]
[422159337,1778639439000,-3013.72,0.00010958,2]